bitfinex/quotes_SOLUSD_20240926
["timestamp","ask_amount","ask_price","bid_price","bid_amount"]
[1727374336674,6.4028,156.19,156.11,1.39930683]
[1727374336981,6.4029,156.18,156.14,12.61996885]
[1727374337193,6.4025,156.19,156.14,12.61996885]
[1727374337497,22.184316,156.21,156.14,12.61996885]
[1727374337671,6.4025,156.19,156.14,12.61996885]
[1727374339098,6.4021,156.2,156.16,12.61996885]
[1727374339689,8.0036934,156.19,156.14,12.61996885]
[1727374339889,8.0036934,156.19,156.11,0.3693159]
[1727374340094,1.6009934,156.19,156.13,12.61996885]
[1727374340670,6.4033,156.17,156.11,0.3693159]
[1727374340899,6.4033,156.17,156.12,12.61996885]
[1727374341692,41.63486758,156.2,156.12,12.61996885]
[1727374342792,6.4035,156.17,156.12,12.61996885]
[1727374345592,6.4031,156.18,156.14,12.61996885]
[1727374346099,1.60116938,156.17,156.11,0.3693159]
[1727374346490,6.4042,156.15,156.11,0.3693159]
[1727374347578,1.60152002,156.14,156.11,0.3693159]
[1727374350080,6.4042,156.15,156.11,0.3693159]
[1727374350802,6.4038,156.16,156.13,12.61996885]
[1727374351479,6.4038,156.16,156.11,12.98928475]
[1727374352385,6.4033,156.17,156.13,12.61996885]
[1727374352690,6.4028,156.18,156.13,12.61996885]
[1727374353203,25.49311419,156.21,156.17,12.61996885]
[1727374353412,15.5012,156.21,156.17,12.61996885]
[1727374353807,21.9029,156.21,156.17,12.61996885]
[1727374354191,6.402,156.2,156.17,12.61996885]
[1727374354908,6.402,156.2,156.15,12.61996885]
[1727374355715,6.4021,156.2,156.15,12.61996885]
[1727374356612,16.05886828,156.23,156.17,12.61996885]
[1727374356792,6.4013,156.22,156.17,12.61996885]
[1727374356993,16.39166828,156.23,156.19,12.61996885]
[1727374357234,13.08209307,156.23,156.19,12.61996885]
[1727374359213,6.68119307,156.23,156.21,12.61996885]
[1727374359516,6.4004,156.25,156.22,12.61996885]
[1727374359696,6.6504737,156.27,156.22,12.61996885]
[1727374359893,0.2512737,156.27,156.24,12.61996885]
[1727374360119,0.2512737,156.27,156.18,21.02844889]
[1727374360120,0.2512737,156.27,156.26,12.61996885]
[1727374360996,0.2512737,156.27,156.26,32.61996885]
[1727374361403,0.2512737,156.27,156.26,33.6468228]
[1727374361717,0.2512737,156.27,156.26,32.61996885]
[1727374362213,0.2512737,156.27,156.24,12.61996885]
[1727374362416,6.6504737,156.27,156.21,20.0]
[1727374362598,1.60020214,156.26,156.21,20.0]
[1727374362794,7.99980214,156.26,156.21,20.0]
[1727374363005,6.3996,156.26,156.21,20.0]
[1727374363402,6.3996,156.26,156.06,396.8373831]
[1727374363403,1.2119923,156.25,156.17,19.69697784]
[1727374363814,6.4,156.25,156.17,19.69697784]
[1727374364311,1.6004363,156.24,156.17,19.69697784]
[1727374364618,6.4004,156.24,156.17,19.69697784]
[1727374364806,6.4004,156.24,156.18,20.0]
[1727374365001,6.4004,156.24,156.17,20.0]
[1727374365200,1.60043292,156.23,156.17,20.0]
[1727374365598,8.00133292,156.23,156.14,20.0]
[1727374365916,6.4016,156.21,156.13,20.0]
[1727374366101,1.60077719,156.2,156.13,20.0]
[1727374366301,0.25098,156.24,156.14,1.02956168]
[1727374366512,6.4008,156.23,156.14,1.02956168]
[1727374367316,6.4008,156.23,156.15,23.776884]
[1727374367520,6.4008,156.23,156.16,1.02928342]
[1727374367722,6.4008,156.23,156.16,21.02928342]
[1727374368223,6.4008,156.23,156.16,20.0]
[1727374368520,8.00181977,156.22,156.16,20.0]
[1727374368722,24.027864,156.25,156.16,20.0]
[1727374368932,6.4004,156.24,156.17,1.02905498]
[1727374369232,0.2512737,156.27,156.18,43.776884]
[1727374369437,0.2512737,156.27,156.2,20.0]
[1727374369611,0.2512737,156.27,156.21,1.02816329]
[1727374369806,0.2512737,156.27,156.2,20.0]
[1727374370002,6.6504737,156.27,156.2,20.0]
[1727374370325,0.2512737,156.27,156.2,20.0]
[1727374370531,7.99993483,156.26,156.2,20.0]
[1727374370822,7.99993483,156.26,156.19,20.0]
[1727374371020,6.3997,156.26,156.19,20.0]
[1727374371325,0.2512737,156.27,156.19,20.0]
[1727374371517,6.4003,156.25,156.19,20.0]
[1727374371717,6.4003,156.25,156.18,20.0]
[1727374372024,8.00080629,156.24,156.18,20.0]
[1727374372429,6.4009,156.23,156.16,20.0]
[1727374372624,6.4012,156.22,156.16,20.0]
[1727374372807,1.60066204,156.21,156.15,20.0]
[1727374373007,1.60071188,156.2,156.15,20.0]
[1727374373208,1.60071444,156.2,156.15,20.0]
[1727374373406,1.60071444,156.2,156.12,22.3875]
[1727374373707,6.4016,156.21,156.12,22.3875]
[1727374374306,6.4026,156.19,156.11,0.3693159]
[1727374374527,1.60094665,156.18,156.11,20.06629374]
[1727374374726,1.60094665,156.18,156.11,0.3693159]
[1727374375029,6.4025,156.19,156.11,0.3693159]
[1727374375226,6.4025,156.19,156.12,1.03009436]
[1727374375421,6.4029,156.18,156.11,0.3693159]
[1727374375633,1.60103576,156.17,156.11,0.3693159]
[1727374375831,6.4029,156.18,156.11,0.3693159]
[1727374376020,1.60109394,156.17,156.11,0.3693159]
[1727374376536,8.00439394,156.17,156.11,0.3693159]
[1727374376913,1.60115059,156.16,156.11,0.3693159]
[1727374378341,6.4033,156.17,156.11,0.3693159]
[1727374378913,1.60113162,156.16,156.11,0.3693159]
[1727374379830,6.4029,156.18,156.11,0.3693159]
[1727374380714,6.4029,156.18,156.11,20.3693159]
[1727374381023,6.4048,156.14,156.11,0.3693159]
[1727374381847,24.027864,156.19,156.11,0.3693159]
[1727374382016,6.4036,156.17,156.11,0.3693159]
[1727374382549,6.4029,156.18,156.11,0.3693159]
[1727374382714,6.4029,156.18,156.12,1.03043529]
[1727374382911,6.4032,156.17,156.11,0.3693159]
[1727374384323,1.60114903,156.16,156.11,0.3693159]
[1727374384714,6.4032,156.17,156.11,0.3693159]
[1727374384918,1.6011528,156.16,156.11,0.3693159]
[1727374385133,1.6011528,156.16,156.11,20.3693159]
[1727374386331,1.60115541,156.16,156.11,20.3693159]
[1727374386740,6.4032,156.17,156.11,20.3693159]
[1727374386941,8.00494426,156.16,156.11,20.3693159]
[1727374387139,6.4034,156.17,156.11,20.3693159]
[1727374387326,6.4034,156.17,156.12,1.03048928]
[1727374387945,6.4034,156.17,156.11,20.3693159]
[1727374388442,8.00494176,156.16,156.11,0.3693159]
[1727374389028,6.4038,156.16,156.11,0.3693159]
[1727374389223,6.4034,156.17,156.11,0.3693159]
[1727374389539,6.4557,156.2,156.11,20.3693159]
[1727374389838,6.4029,156.18,156.11,20.3693159]
[1727374390041,6.4557,156.2,156.11,20.3693159]
[1727374390245,6.4025,156.19,156.11,20.3693159]
[1727374390942,6.4032,156.17,156.11,20.3693159]
[1727374391241,1.60114206,156.16,156.11,20.3693159]
[1727374391744,1.60114206,156.16,156.11,0.3693159]
[1727374391946,6.4032,156.17,156.11,0.3693159]
[1727374392443,6.4557,156.2,156.11,0.3693159]
[1727374392647,6.4025,156.19,156.12,1.03028523]
[1727374393117,6.4025,156.19,156.11,24.1461999]
[1727374395248,6.4021,156.2,156.12,40.7270994]
[1727374395843,23.11906715,156.21,156.12,40.7270994]
[1727374396045,6.68526715,156.21,156.14,20.0]
[1727374396343,6.4015,156.22,156.14,20.0]
[1727374396551,6.4015,156.22,156.15,23.776884]
[1727374396735,6.1487,156.24,156.15,23.776884]
[1727374397051,6.1487,156.24,156.16,1.02928311]
[1727374397345,6.69060894,156.25,156.18,39.69697784]
[1727374397848,6.3996,156.26,156.18,39.69697784]
[1727374398430,1.60023274,156.25,156.18,39.69697784]
[1727374399353,6.3996,156.26,156.18,39.69697784]
[1727374400048,6.4005,156.24,156.18,20.0]
[1727374400254,1.60042797,156.23,156.18,20.0]
[1727374400452,8.00122797,156.23,156.18,20.0]
[1727374400754,6.4004,156.24,156.18,20.0]
[1727374400931,1.60042523,156.23,156.18,20.0]
[1727374403641,6.4001,156.25,156.18,20.0]
[1727374404049,6.3996,156.26,156.18,39.69697784]
[1727374404439,8.0002585,156.25,156.18,39.69697784]
[1727374405435,1.60025775,156.24,156.18,39.69697784]
[1727374405659,6.4,156.25,156.18,39.69697784]
[1727374405957,0.2512737,156.27,156.18,39.69697784]
[1727374406158,6.3996,156.26,156.2,20.0]
[1727374406365,6.6505737,156.27,156.2,39.69697784]
[1727374406541,6.6505737,156.27,156.21,1.02803368]
[1727374406936,6.6505737,156.27,156.2,39.69697784]
[1727374407162,7.9998335,156.26,156.2,39.69697784]
[1727374407752,6.4001,156.25,156.2,20.0]
[1727374407935,1.60026224,156.24,156.2,20.0]
[1727374409355,1.60026224,156.24,156.19,20.0]
[1727374409859,1.60026224,156.24,156.18,20.0]
[1727374410040,6.4009,156.23,156.18,20.0]
[1727374410946,8.00210471,156.22,156.15,23.776884]
[1727374411255,6.4017,156.21,156.13,22.5926]
[1727374411463,8.00274675,156.2,156.13,22.5926]
[1727374411839,1.60077101,156.19,156.13,22.5926]
[1727374412448,6.402,156.2,156.13,22.5926]
[1727374413754,6.402,156.2,156.14,20.0]
[1727374414273,6.4017,156.21,156.14,20.0]
[1727374414782,6.4017,156.21,156.15,1.02962433]
[1727374416863,6.402,156.2,156.15,1.02962433]
[1727374417276,6.402,156.2,156.14,20.0]
[1727374419067,0.25098,156.21,156.11,20.3693159]
[1727374419252,0.25098,156.21,156.12,1.03019516]
[1727374419253,6.4036,156.17,156.12,1.03019516]
[1727374420379,6.4036,156.17,156.11,1.39978128]
[1727374420678,6.4029,156.18,156.13,20.0]
[1727374420852,1.60096106,156.17,156.13,20.0]
[1727374421947,1.60096106,156.17,156.11,0.3693159]
[1727374422148,6.404,156.16,156.11,0.3693159]
[1727374422672,22.7024059,156.21,156.11,0.3693159]
[1727374422673,6.6980059,156.21,156.15,20.0]
[1727374422867,8.17353113,156.25,156.17,20.0]
[1727374423169,12.9733,156.25,156.17,20.0]
[1727374423376,12.9733,156.25,156.19,20.0]
[1727374423748,6.5732,156.25,156.19,21.02865312]
[1727374424256,15.2298,156.26,156.2,23.776884]
[1727374424460,15.2298,156.26,156.21,1.02824213]
[1727374424880,15.2298,156.26,156.2,23.776884]
[1727374425056,1.60019224,156.25,156.19,20.0]
[1727374425874,21.6294,156.26,156.19,20.0]
[1727374426253,8.00026381,156.25,156.17,23.776884]
[1727374426454,1.60026381,156.25,156.16,20.0]
[1727374427389,6.4008,156.23,156.16,20.0]
[1727374427555,1.60056878,156.22,156.16,20.0]
[1727374427762,1.60056878,156.22,156.18,20.0]
[1727374427969,6.4005,156.24,156.19,1.02901322]
[1727374428276,6.4,156.25,156.19,23.776884]
[1727374428648,15.2298,156.26,156.2,39.69697784]
[1727374428867,15.2298,156.26,156.21,24.80470335]
[1727374430253,15.2298,156.26,156.22,20.0]
[1727374431351,15.2298,156.26,156.21,23.776884]
[1727374431547,15.2298,156.26,156.22,20.0]
[1727374431548,1.60004158,156.25,156.22,20.0]
[1727374432881,6.4008,156.24,156.12,6.1259]
[1727374433062,8.00145894,156.23,156.14,19.69697784]
[1727374433249,6.4003,156.25,156.16,19.69697784]
[1727374433753,21.6294,156.26,156.18,19.69697784]
[1727374434080,15.2298,156.26,156.18,19.69697784]
[1727374434256,0.2512737,156.27,156.24,19.69697784]
[1727374434659,0.2512737,156.27,156.23,23.776884]
[1727374434870,0.2512737,156.27,156.24,1.0274359]
[1727374435365,0.2512737,156.27,156.24,40.72441374]
[1727374435753,0.2512737,156.27,156.25,23.776884]
[1727374435964,0.2512737,156.27,156.24,40.72441374]
[1727374435965,0.2512737,156.27,156.26,1.02706386]
[1727374436879,0.2512737,156.27,156.25,1.02706559]
[1727374437352,0.2512737,156.27,156.26,23.776884]
[1727374437661,0.2512737,156.27,156.26,63.72484184]
[1727374437852,0.2512737,156.32,156.26,63.72484184]
[1727374437853,0.2512737,156.32,156.27,20.25098]
[1727374438056,0.2512737,156.32,156.3,20.0]
[1727374438368,0.2512737,156.32,156.31,1.02571711]
[1727374439284,0.2512737,156.32,156.3,20.0]
[1727374441682,0.2512737,156.32,156.3,21.02573681]
[1727374442886,0.2512737,156.32,156.31,44.80236108]
[1727374443176,0.2512737,156.32,156.31,20.0]
[1727374443485,0.2512737,156.32,156.3,20.0]
[1727374443685,0.2512737,156.32,156.29,23.776884]
[1727374443875,0.2512737,156.32,156.3,21.02591966]
[1727374445884,0.2512737,156.32,156.3,20.0]
[1727374446087,0.2512737,156.32,156.31,1.02579417]
[1727374446793,0.2512737,156.32,156.3,20.0]
[1727374450295,0.2512737,156.32,156.31,23.776884]
[1727374450594,0.2512737,156.32,156.31,64.49938179]
[1727374450891,0.2512737,156.36,156.33,23.776884]
[1727374451196,0.2512737,156.36,156.35,43.776884]
[1727374451566,0.2512737,156.36,156.35,44.027864]
[1727374452484,0.0801094,156.39,156.36,0.25098]
[1727374452673,0.0801094,156.39,156.38,23.776884]
[1727374453863,0.0801094,156.39,156.37,19.69697784]
[1727374454894,0.0801094,156.39,156.35,39.69697784]
[1727374455196,0.0801094,156.39,156.36,1.02428783]
[1727374455592,0.0801094,156.39,156.37,19.69697784]
[1727374455794,0.0801094,156.39,156.38,1.02385289]
[1727374456789,0.0801094,156.39,156.38,44.80073689]
[1727374460297,0.0801094,156.39,156.38,43.776884]
[1727374460903,0.0801094,156.39,156.38,44.8004502]
[1727374461196,0.0801094,156.39,156.38,43.776884]
[1727374461774,0.0801094,156.39,156.31,22.9139]
[1727374461975,0.0801094,156.39,156.31,19.69697784]
[1727374461976,6.3952,156.37,156.31,19.69697784]
[1727374462172,6.3951,156.37,156.31,19.69697784]
[1727374462397,0.0801094,156.39,156.31,19.69697784]
[1727374462600,6.4744094,156.39,156.31,19.69697784]
[1727374463476,6.4744094,156.39,156.33,19.69697784]
[1727374463688,0.0801094,156.39,156.34,20.0]
[1727374463987,0.0801094,156.39,156.35,1.02455987]
[1727374464695,0.0801094,156.39,156.34,20.0]
[1727374464898,6.4745094,156.39,156.35,23.776884]
[1727374465704,6.4745094,156.39,156.34,20.0]
[1727374465911,6.3947,156.38,156.32,44.027864]
[1727374466085,6.3951,156.37,156.32,43.776884]
[1727374466690,0.0801094,156.39,156.34,23.776884]
[1727374466889,6.4744094,156.39,156.35,1.02465507]
[1727374467088,0.0801094,156.39,156.35,1.02465507]
[1727374467318,0.0801094,156.39,156.36,23.776884]
[1727374467600,0.0801094,156.39,156.37,1.0240576]
[1727374468887,0.0801094,156.39,156.38,23.776884]
[1727374474408,0.0801094,156.39,156.37,23.776884]
[1727374474598,0.0801094,156.39,156.38,24.80070164]
[1727374474800,0.0801094,156.39,156.38,23.776884]
[1727374474999,0.0801094,156.39,156.36,20.0]
[1727374475197,0.0801094,156.39,156.37,23.776884]
[1727374478912,6.4744094,156.39,156.35,23.776884]
[1727374479093,0.0801094,156.39,156.36,21.02451813]
[1727374480307,0.0801094,156.39,156.37,23.776884]
[1727374481200,0.0801094,156.39,156.34,20.0]
[1727374481511,0.0801094,156.39,156.35,23.776884]
[1727374481693,0.0801094,156.39,156.36,20.0]
[1727374483011,0.0801094,156.39,156.37,1.02405813]
[1727374484387,0.0801094,156.39,156.36,20.0]
[1727374487911,0.0801094,156.39,156.38,19.69697784]
[1727374488226,0.2512737,156.41,156.4,43.776884]
[1727374488402,0.1180422,156.44,156.42,23.776884]
[1727374488711,0.1180422,156.44,156.43,64.49614954]
[1727374488904,0.1180422,156.44,156.43,57.36664987]
[1727374489416,0.1180422,156.44,156.43,56.34436217]
[1727374489709,22.9425,156.43,156.36,1.58817679]
[1727374489903,16.5496,156.43,156.41,12.56747817]
[1727374490288,0.1180422,156.44,156.41,19.64145079]
[1727374490710,0.1180422,156.44,156.42,1.02267945]
[1727374491201,0.1180422,156.44,156.42,43.776884]
[1727374492098,0.1180422,156.44,156.42,20.0]
[1727374492817,0.1180422,156.44,156.37,19.64145079]
[1727374493020,6.5104422,156.44,156.37,19.64145079]
[1727374493198,1.59837837,156.43,156.37,19.64145079]
[1727374493395,0.1180422,156.44,156.37,19.64145079]
[1727374493802,8.10861941,156.44,156.37,19.64145079]
[1727374494212,6.5102422,156.44,156.38,20.0]
[1727374494409,1.59838862,156.43,156.38,20.0]
[1727374494807,1.59839617,156.43,156.38,20.0]
[1727374496726,16.5496,156.42,156.36,20.0]
[1727374497293,1.5985591,156.41,156.36,20.0]
[1727374497708,16.5496,156.42,156.36,20.0]
[1727374497919,1.59856945,156.41,156.36,20.0]
[1727374498223,16.5496,156.42,156.36,21.02441107]
[1727374500395,16.5496,156.42,156.36,1.02441107]
[1727374500604,16.5496,156.42,156.36,43.776884]
[1727374501725,18.14805431,156.42,156.36,43.776884]
[1727374502032,16.5496,156.42,156.36,43.776884]
[1727374502400,1.59847617,156.41,156.33,20.0]
[1727374502610,16.5496,156.42,156.35,20.0]
[1727374502796,16.5496,156.42,156.37,20.0]
[1727374503000,16.5496,156.42,156.37,21.02404794]
[1727374503530,16.5496,156.42,156.38,1.02398475]
[1727374504318,0.1180422,156.44,156.39,43.776884]
[1727374504525,0.1180422,156.44,156.39,20.0]
[1727374505917,0.1180422,156.44,156.37,43.776884]
[1727374506332,0.1180422,156.44,156.34,19.64145079]
[1727374506634,1.71640308,156.44,156.35,20.0]
[1727374507117,0.2435322,156.44,156.35,20.0]
[1727374507524,0.1180422,156.44,156.39,19.64145079]
[1727374507727,0.1180422,156.44,156.4,20.0]
[1727374509800,0.1180422,156.44,156.38,43.776884]
[1727374510333,0.1180422,156.44,156.39,1.02370349]
[1727374510834,0.1180422,156.44,156.38,43.776884]
[1727374511011,0.1180422,156.44,156.39,1.02369686]
[1727374511623,0.1180422,156.44,156.4,20.0]
[1727374511944,0.1180422,156.44,156.38,43.776884]
[1727374512122,0.1180422,156.44,156.39,1.02369589]
[1727374512310,0.1180422,156.44,156.4,20.0]
[1727374512510,0.1180422,156.44,156.41,1.023508]
[1727374512912,0.1180422,156.44,156.4,20.0]
[1727374513425,0.1180422,156.44,156.38,23.776884]
[1727374513426,0.1180422,156.44,156.43,19.64145079]
[1727374513640,0.1180422,156.44,156.43,64.44092519]
[1727374514107,0.1180422,156.44,156.43,43.776884]
[1727374514315,0.1180422,156.44,156.43,63.41833479]
[1727374514532,0.1180422,156.44,156.43,63.54382479]
[1727374514732,0.1180422,156.44,156.43,63.41833479]
[1727374515315,0.1180422,156.44,156.43,39.64145079]
[1727374515537,0.1180422,156.44,156.41,20.0]
[1727374515725,0.1180422,156.44,156.43,20.0]
[1727374516233,0.1180422,156.44,156.43,21.02268271]
[1727374516414,0.1180422,156.44,156.43,20.0]
[1727374516616,0.1180422,156.44,156.41,20.0]
[1727374516934,0.1180422,156.44,156.42,1.02275189]
[1727374519945,0.1180422,156.44,156.41,20.0]
[1727374520228,0.1180422,156.44,156.42,1.02281994]
[1727374521329,0.1180422,156.44,156.43,63.41833479]
[1727374521531,0.1180422,156.44,156.43,63.54382479]
[1727374522913,0.2512737,156.46,156.45,19.64145079]
[1727374523117,0.2512737,156.46,156.45,39.64145079]
[1727374523323,0.2512737,156.46,156.45,63.41833479]
[1727374523815,0.2512737,156.46,156.43,19.64145079]
[1727374524016,0.2512737,156.46,156.41,20.0]
[1727374524233,0.2512737,156.46,156.43,19.64145079]
[1727374524535,0.2512737,156.46,156.44,21.02230548]
[1727374525032,0.2512737,156.46,156.45,19.64145079]
[1727374525222,0.2512737,156.46,156.45,63.41833479]
[1727374530144,0.2512737,156.46,156.45,39.64145079]
[1727374532540,0.2512737,156.46,156.45,63.41833479]
[1727374534947,0.2512737,156.46,156.43,19.64145079]
[1727374535122,0.2512737,156.46,156.44,43.776884]
[1727374536343,0.2512737,156.46,156.44,20.0]
[1727374537930,0.2512737,156.46,156.42,43.776884]
[1727374538227,0.2512737,156.46,156.45,19.89243079]
[1727374538430,0.3313831,156.5,156.46,24.027864]
[1727374538738,0.3313831,156.5,156.49,63.41833479]
[1727374542026,0.3313831,156.5,156.49,39.64145079]
[1727374547935,0.3313831,156.5,156.48,20.0]
[1727374548964,0.3313831,156.5,156.48,21.02156659]
[1727374551043,0.3313831,156.5,156.49,19.64145079]
[1727374551248,0.3313831,156.5,156.49,40.6626911]
[1727374551852,0.3313831,156.5,156.48,20.0]
[1727374552752,0.3313831,156.5,156.49,1.02182379]
[1727374552952,0.3313831,156.5,156.48,20.0]
[1727374553157,0.3313831,156.5,156.48,21.02166298]
[1727374553848,0.3313831,156.5,156.48,20.0]
[1727374554756,0.3313831,156.5,156.48,21.02147698]
[1727374554951,0.3313831,156.5,156.49,39.64145079]
[1727374558261,0.3313831,156.5,156.49,44.01778732]
[1727374558559,0.3313831,156.5,156.49,36.93513291]
[1727374558757,0.3313831,156.5,156.49,32.55879638]
[1727374558967,0.3313831,156.5,156.49,36.93513291]
[1727374561461,0.3313831,156.5,156.49,60.71201691]
[1727374561967,0.3313831,156.5,156.49,60.71213203]
[1727374565247,0.3313831,156.5,156.49,60.96284323]
[1727374565445,0.3693159,156.55,156.5,43.776884]
[1727374565645,0.3693159,156.55,156.54,12.55879638]
[1727374567174,0.3693159,156.55,156.54,32.55879638]
[1727374573047,0.3693159,156.55,156.54,56.33568038]
[1727374573870,0.3693159,156.55,156.54,60.70304812]
[1727374576376,0.0801094,156.58,156.55,43.776884]
[1727374576676,0.0801094,156.58,156.57,32.55879638]
[1727374577874,0.0801094,156.58,156.56,32.55879638]
[1727374578890,0.0801094,156.58,156.49,0.12549]
[1727374579068,0.0801094,156.58,156.57,20.0]
[1727374579978,15.6875094,156.58,156.5,20.12549]
[1727374580275,15.6875094,156.58,156.55,20.0]
[1727374581577,15.6875094,156.58,156.55,32.55879638]
[1727374582601,17.28434356,156.58,156.54,20.0]
[1727374583083,15.6875094,156.58,156.54,20.0]
[1727374584983,0.25098,156.57,156.44,22.8829498]
[1727374585156,1.59728638,156.56,156.45,4.3643471]
[1727374585357,0.12549,156.55,156.48,12.55879638]
[1727374585564,7.98458638,156.56,156.48,12.55879638]
[1727374585565,1.59733727,156.54,156.48,12.55879638]
[1727374586369,6.63798,156.57,156.48,12.55879638]
[1727374586572,6.63798,156.57,156.49,20.0]
[1727374586573,0.25098,156.57,156.49,20.0]
[1727374586773,0.25098,156.57,156.5,12.55879638]
[1727374586975,0.12549,156.57,156.5,12.55879638]
[1727374588473,15.6875094,156.58,156.52,12.55879638]
[1727374588686,15.6875094,156.58,156.53,20.0]
[1727374590677,1.72245871,156.57,156.45,24.027864]
[1727374590886,1.72245871,156.57,156.51,20.0]
[1727374592260,0.12549,156.57,156.51,21.02079996]
[1727374592656,0.12549,156.57,156.51,20.0]
[1727374593260,1.722653,156.57,156.51,20.0]
[1727374593459,8.109653,156.57,156.51,20.0]
[1727374594081,0.12549,156.57,156.51,20.0]
[1727374594470,0.12549,156.57,156.46,32.55879638]
[1727374594471,6.469,156.54,156.46,32.55879638]
[1727374594669,15.9507,156.52,156.47,4.24915261]
[1727374595371,15.9507,156.52,156.47,5.27084026]
[1727374595575,15.9507,156.52,156.48,12.55879638]
[1727374596286,15.9507,156.52,156.49,20.0]
[1727374596676,15.9507,156.52,156.49,21.02162248]
[1727374596884,15.9507,156.52,156.49,21.02132834]
[1727374597272,15.9507,156.52,156.49,20.0]
[1727374600293,1.59754648,156.51,156.44,23.776884]
[1727374600472,15.9507,156.52,156.46,20.0]
[1727374600678,15.9507,156.52,156.47,4.25238068]
[1727374601500,15.9507,156.52,156.48,20.0]
[1727374602269,15.9507,156.52,156.46,20.0]
[1727374602779,1.59766061,156.51,156.46,20.0]
[1727374602976,15.9507,156.52,156.46,21.02211477]
[1727374604071,15.9507,156.52,156.47,12.55879638]
[1727374607101,1.59764553,156.51,156.46,20.0]
[1727374607396,15.9507,156.52,156.46,20.0]
[1727374610387,15.9507,156.52,156.46,21.02218528]
[1727374610590,15.9507,156.52,156.46,20.0]
[1727374612696,15.9507,156.52,156.47,12.55879638]
[1727374613686,15.9507,156.52,156.47,13.58051426]
[1727374615915,15.9507,156.52,156.48,20.0]
[1727374616316,15.9507,156.52,156.48,21.02152462]
[1727374617318,15.9507,156.52,156.49,12.55879638]
[1727374618615,5.9507,156.52,156.49,12.55879638]
[1727374621524,0.12549,156.56,156.52,20.0]
[1727374621820,16.48229,156.57,156.52,20.0]
[1727374624522,22.86919,156.57,156.52,20.0]
[1727374625018,6.592,156.55,156.43,0.2512737]
[1727374625226,0.12549,156.52,156.43,0.2512737]
[1727374625433,0.12549,156.52,156.44,12.55879638]
[1727374625600,0.12549,156.52,156.46,12.55879638]
[1727374626708,0.12549,156.52,156.47,20.0]
[1727374630800,0.12549,156.48,156.43,0.2512737]
[1727374631103,6.3917,156.46,156.43,0.2512737]
[1727374631302,1.59830732,156.45,156.43,0.2512737]
[1727374631524,6.592,156.44,156.43,0.2512737]
[1727374631905,23.07429,156.44,156.43,0.2512737]
[1727374632105,29.59198,156.44,156.43,0.2512737]
[1727374632313,53.368864,156.44,156.43,0.2512737]
[1727374632517,23.19978,156.44,156.43,0.2512737]
[1727374632918,54.96738658,156.44,156.43,0.2512737]
[1727374633714,6.64388,156.43,156.39,0.2512737]
[1727374633917,1.59872237,156.42,156.39,0.2512737]
[1727374634611,0.12549,156.41,156.39,0.2512737]
[1727374634948,1.59879688,156.4,156.39,0.2512737]
[1727374635330,1.72428688,156.4,156.39,0.2512737]
[1727374636818,0.12549,156.4,156.39,0.2512737]
[1727374638134,0.12549,156.42,156.39,0.2512737]
[1727374639336,1.72419843,156.42,156.39,0.2512737]
[1727374639810,24.027864,156.43,156.39,0.2512737]
[1727374640236,0.12549,156.42,156.39,0.2512737]
[1727374640935,0.12549,156.4,156.39,0.2512737]
[1727374643814,1.84989777,156.4,156.39,0.2512737]
[1727374645630,25.62678177,156.4,156.39,0.2512737]
[1727374646141,54.81328177,156.4,156.39,0.2512737]
[1727374646344,54.81328177,156.4,156.34,0.2512737]
[1727374646345,30.296574,156.39,156.34,0.2512737]
[1727374646542,23.902374,156.37,156.34,0.2512737]
[1727374646739,0.12549,156.36,156.34,0.2512737]
[1727374647035,1.72489355,156.36,156.34,0.2512737]
[1727374647243,0.12549,156.35,156.34,0.2512737]
[1727374647944,0.12549,156.36,156.34,0.2512737]
[1727374649245,23.902374,156.39,156.34,0.2512737]
[1727374649438,22.7927,156.4,156.34,0.2512737]
[1727374650027,29.48114554,156.44,156.35,12.55879638]
[1727374651044,29.48114554,156.44,156.37,12.55879638]
[1727374651337,22.7927,156.44,156.37,12.55879638]
[1727374651540,24.39140016,156.44,156.37,12.55879638]
[1727374652226,24.027864,156.43,156.36,20.0]
[1727374652456,1.59882522,156.42,156.36,20.0]
[1727374652641,0.12549,156.41,156.34,0.2512737]
[1727374652821,24.027864,156.43,156.34,0.2512737]
[1727374652822,1.59882188,156.4,156.34,0.2512737]